[Event "2nd Serbian League-Vojvodina 2023"]
[Site "Novi Sad"]
[Date "2023.11.08"]
[Round "9.14"]
[White "Jakovljev, Zoran"]
[Black "Kopasz, Robert"]
[Result "0-1"]
[ECO "C68"]
[WhiteElo "2194"]
[BlackElo "2241"]
[Annotator "RC"]
[PlyCount "100"]
[EventDate "2023.10.22"]
[EventType "team-tourn"]
[EventCountry "SRB"]
[SourceTitle "playchess.com"]
[Source "ChessBase"]
[SourceQuality "1"]
[TimeControl "40/5400+30:1800+30"]

1. e4 {[%emt 1:31:00]} e5 {[%emt 0:00:18]} 2. Nf3 Nc6 {[%emt 1:31:12]} 3. Bb5 {[%emt 0:01:00]} a6 {[%emt 0:00:00]} 4. Bxc6 {[%emt 0:00:30]} dxc6 {[%emt 0:01:00]} 5. d3 {[%emt 0:00:30]} Bd6 {[%emt 0:00:30]} 6. O-O {[%emt 0:00:30]} Ne7 {[%emt 0:00:30]} 7. Be3 {[%emt 0:00:30]} f6 {[%emt 0:00:00]} 8. Nbd2 Be6 {[%emt 0:01:00]} 9. Qe2 {[%emt 0:00:00]} Qd7 10. a3 {[%emt 0:01:30]} g5 {[%emt 0:01:00]} 11. Rfb1 {[%emt 0:00:30]} Ng6 {[%emt 0:00:30]} 12. b4 {[%emt 0:00:30]} g4 {[%emt 0:00:30]} 13. Ne1 {[%emt 0:00:30]} h5 {[%emt 0:00:00]} 14. a4 h4 {[%emt 0:01:00]} 15. c4 {[%emt 0:01:00]} Kf7 {[%emt 0:00:30]} 16. Nc2 {[%emt 0:00:00]} Rag8 17. c5 {[%emt 0:01:00]} Be7 {[%emt 0:01:00]} 18. g3 {[%emt 0:00:30]} Rh7 {[%emt 0:00:30]} 19. Nf1 {[%emt 0:00:30]} f5 {[%emt 0:00:30]} 20. exf5 {[%emt 0:00:00]} Bxf5 {[%emt 0:00:30]} 21. Rd1 {[%emt 0:01:00]} Bf6 {[%emt 0:00:00]} 22. Rd2 {[%emt 0:00:00]} Qd5 23. Ne1 {[%emt 0:00:00]} Nf8 24. d4 {[%emt 0:01:30]} Ne6 {[%emt 0:00:00]} 25. dxe5 Qxe5 {[%emt 0:02:30]} 26. Rad1 {[%emt 0:01:00]} Qe4 {[%emt 0:00:30]} 27. Rd7+ {[%emt 0:00:30]} Kg6 {[%emt 0:00:30]} 28. Rxh7 {[%emt 0:00:30]} Kxh7 {[%emt 0:00:30]} 29. Rd7+ {[%emt 0:00:30]} Rg7 {[%emt 0:00:00]} 30. Rxg7+ {[%emt 0:00:00]} Bxg7 31. f3 {[%emt 0:01:00]} Qxb4 {[%emt 0:01:30]} 32. gxh4 {[%emt 0:00:30]} Nd4 {[%emt 0:00:00]} 33. Bxd4 Qxd4+ {[%emt 0:01:00]} 34. Kg2 {[%emt 0:01:00]} gxf3+ {[%emt 0:00:00]} 35. Nxf3 {[%emt 0:00:30]} Qe4 {[%emt 0:01:00]} 36. Qf2 {[%emt 0:00:00]} Qg4+ 37. Qg3 {[%emt 0:01:00]} Bh6 {[%emt 0:01:00]} 38. Ng5+ {[%emt 0:00:30]} Kg6 {[%emt 0:00:30]} 39. Nf3 {[%emt 0:00:30]} Bf4 {[%emt 0:00:30]} 40. Qxg4+ {[%emt 0:00:00]} Bxg4 {[%emt 0:00:30]} 41. Ng3 {[%emt 0:31:00]} Be6 {[%emt 0:18:51]} 42. Kf2 a5 {[%emt 0:00:21]} 43. Ne2 Bh6 {[%emt 0:12:18]} 44. Ned4 {[%emt 0:01:30]} Bd5 {[%emt 0:00:30]} 45. Ne5+ {[%emt 0:00:30]} Kh7 {[%emt 0:00:30]} 46. Nf5 {[%emt 0:00:00]} b5 {[%emt 0:00:00]} 47. axb5 {[%emt 0:01:00]} cxb5 48. Nd7 {[%emt 0:00:30]} Be6 {[%emt 0:00:00]} 49. Nxh6 {[%emt 0:00:00]} Kxh6 {[%emt 0:02:00]} 50. c6 {[%emt 0:00:00]} a4 0-1

[Event "2nd Serbian League-Vojvodina 2023"]
[Site "Novi Sad"]
[Date "2023.11.08"]
[Round "9.16"]
[White "Telecki, Ivan"]
[Black "Gusev, Mikhail"]
[Result "0-1"]
[ECO "C00"]
[WhiteElo "2260"]
[BlackElo "2012"]
[Annotator "RC"]
[PlyCount "82"]
[EventDate "2023.10.22"]
[EventType "team-tourn"]
[EventCountry "SRB"]
[SourceTitle "playchess.com"]
[Source "ChessBase"]
[SourceQuality "1"]
[TimeControl "40/5400+30:1800+30"]

1. e4 {[%emt 1:31:00]} c5 {[%emt 1:31:00]} 2. d3 {[%emt 0:00:30]} e6 {[%emt 0:00:30]} 3. Nd2 {[%emt 0:00:30]} d5 {[%emt 0:00:30]} 4. g3 {[%emt 0:00:30]} Nc6 {[%emt 0:00:30]} 5. Bg2 {[%emt 0:00:30]} Nge7 {[%emt 0:00:30]} 6. b3 {[%emt 0:00:30]} g6 {[%emt 0:00:30]} 7. Bb2 {[%emt 0:00:30]} d4 {[%emt 0:00:30]} 8. h4 {[%emt 0:00:30]} h5 {[%emt 0:00:30]} 9. a4 {[%emt 0:00:30]} Bh6 {[%emt 0:00:30]} 10. Ngf3 {[%emt 0:00:00]} e5 11. Ba3 {[%emt 0:01:00]} b6 {[%emt 0:01:00]} 12. Nc4 {[%emt 0:00:30]} Qc7 {[%emt 0:00:30]} 13. Bc1 {[%emt 0:00:30]} Bg7 {[%emt 0:00:30]} 14. Nh2 {[%emt 0:00:30]} O-O {[%emt 0:00:30]} 15. g4 {[%emt 0:00:30]} hxg4 {[%emt 0:00:30]} 16. Nxg4 {[%emt 0:00:30]} f5 {[%emt 0:00:30]} 17. Nh6+ {[%emt 0:00:30]} Kh7 {[%emt 0:00:30]} 18. h5 {[%emt 0:00:30]} g5 {[%emt 0:00:30]} 19. Nxf5 {[%emt 0:00:30]} Nxf5 {[%emt 0:00:30]} 20. exf5 {[%emt 0:00:30]} Bxf5 {[%emt 0:00:30]} 21. Bxg5 {[%emt 0:00:30]} e4 {[%emt 0:00:30]} 22. dxe4 {[%emt 0:00:30]} Rae8 {[%emt 0:00:30]} 23. Kf1 {[%emt 0:00:30]} Bxe4 {[%emt 0:00:30]} 24. Bxe4+ {[%emt 0:00:00]} Rxe4 {[%emt 0:00:30]} 25. h6 {[%emt 0:01:00]} Bh8 {[%emt 0:00:00]} 26. Qd3 {[%emt 0:00:30]} Rfe8 {[%emt 0:01:00]} 27. Re1 {[%emt 0:00:30]} Nb4 {[%emt 0:00:30]} 28. Rxe4 {[%emt 0:00:30]} Nxd3 {[%emt 0:00:30]} 29. Rxe8 {[%emt 0:00:30]} Qc6 {[%emt 0:00:30]} 30. Re7+ {[%emt 0:00:30]} Kg6 {[%emt 0:00:30]} 31. Rg1 {[%emt 0:00:30]} Qf3 {[%emt 0:00:30]} 32. cxd3 {[%emt 0:00:30]} Qxd3+ {[%emt 0:00:30]} 33. Ke1 {[%emt 0:00:30]} Qb1+ {[%emt 0:00:30]} 34. Bc1+ {[%emt 0:00:30]} Kf6 {[%emt 0:00:30]} 35. Ke2 {[%emt 0:00:30]} Qc2+ {[%emt 0:00:30]} 36. Bd2 {[%emt 0:00:30]} Kxe7 {[%emt 0:00:00]} 37. Rg8 {[%emt 0:00:30]} Qxb3 {[%emt 0:01:00]} 38. Rxh8 {[%emt 0:00:30]} Qxc4+ {[%emt 0:00:30]} 39. Kf3 {[%emt 0:00:30]} Qd3+ {[%emt 0:00:30]} 40. Kg4 {[%emt 0:00:30]} Qe2+ {[%emt 0:00:00]} 41. Kf5 Qe6+ {[%emt 0:31:00]} 0-1

[Event "2nd Serbian League-Vojvodina 2023"]
[Site "Novi Sad"]
[Date "2023.11.08"]
[Round "9.17"]
[White "Levitan, Judah Nathan"]
[Black "Varga, Robert"]
[Result "1/2-1/2"]
[ECO "B13"]
[WhiteElo "1937"]
[BlackElo "2043"]
[Annotator "RC"]
[PlyCount "37"]
[EventDate "2023.10.22"]
[EventType "team-tourn"]
[EventCountry "SRB"]
[SourceTitle "playchess.com"]
[Source "ChessBase"]
[SourceQuality "1"]
[TimeControl "40/5400+30:1800+30"]

1. e4 {[%emt 1:31:00]} c6 {[%emt 1:31:00]} 2. d4 {[%emt 0:00:30]} d5 {[%emt 0:00:30]} 3. exd5 {[%emt 0:00:30]} cxd5 {[%emt 0:00:30]} 4. Bd3 {[%emt 0:00:30]} Nc6 {[%emt 0:00:30]} 5. c3 {[%emt 0:00:30]} Nf6 {[%emt 0:00:30]} 6. Bf4 {[%emt 0:00:30]} g6 {[%emt 0:00:30]} 7. Nf3 {[%emt 0:00:30]} Bg7 {[%emt 0:00:30]} 8. h3 {[%emt 0:00:30]} O-O {[%emt 0:00:30]} 9. O-O {[%emt 0:00:30]} a6 {[%emt 0:00:30]} 10. Nbd2 {[%emt 0:00:30]} e6 {[%emt 0:00:30]} 11. Ne5 {[%emt 0:00:30]} Nxe5 {[%emt 0:00:30]} 12. Bxe5 {[%emt 0:00:30]} Bd7 {[%emt 0:00:30]} 13. Qb3 {[%emt 0:00:30]} Bc6 {[%emt 0:00:30]} 14. Nf3 {[%emt 0:00:30]} Bh6 {[%emt 0:00:30]} 15. Bh2 {[%emt 0:00:30]} Ne4 {[%emt 0:00:30]} 16. Rfe1 {[%emt 0:00:30]} Nd2 {[%emt 0:00:30]} 17. Nxd2 {[%emt 0:00:30]} Bxd2 {[%emt 0:00:30]} 18. Re2 {[%emt 0:00:30]} Bh6 {[%emt 0:00:30]} 19. a4 {[%emt 0:00:30]} 1/2-1/2

[Event "2nd Serbian League-Vojvodina 2023"]
[Site "Novi Sad"]
[Date "2023.11.08"]
[Round "9.19"]
[White "Agdelen, Huseyin Can"]
[Black "Farkas, Sandor I"]
[Result "1-0"]
[ECO "B90"]
[WhiteElo "2401"]
[BlackElo "2112"]
[Annotator "RC"]
[PlyCount "55"]
[EventDate "2023.10.22"]
[EventType "team-tourn"]
[EventCountry "SRB"]
[SourceTitle "playchess.com"]
[Source "ChessBase"]
[SourceQuality "1"]
[TimeControl "40/5400+30:1800+30"]

1. e4 {[%emt 0:00:08]} c5 {[%emt 0:01:44]} 2. Nf3 {[%emt 0:02:22]} d6 {[%emt 0:00:08]} 3. d4 {[%emt 0:00:05]} cxd4 {[%emt 0:00:08]} 4. Nxd4 {[%emt 0:00:05]} Nf6 {[%emt 0:00:07]} 5. Nc3 {[%emt 0:00:08]} a6 {[%emt 0:00:07]} 6. h3 {[%emt 0:01:24]} e5 {[%emt 0:00:24]} 7. Nb3 {[%emt 0:00:06]} h5 {[%emt 0:05:08]} 8. Bg5 {[%emt 0:06:22]} Be7 {[%emt 0:07:16]} 9. Qd3 {[%emt 0:05:08]} Be6 {[%emt 0:06:34]} 10. f4 {[%emt 0:07:18]} Nc6 {[%emt 0:03:37]} 11. O-O-O {[%emt 0:05:02]} Rc8 {[%emt 0:10:21]} 12. Kb1 {[%emt 0:05:08]} Qc7 {[%emt 0:06:48]} 13. Be2 {[%emt 0:25:04]} b5 {[%emt 0:04:08]} 14. Qe3 {[%emt 0:13:51]} Nb4 {[%emt 0:12:57]} 15. a3 {[%emt 0:05:26]} Nc6 {[%emt 0:08:33]} 16. Nd5 {[%emt 0:04:44]} Bxd5 {[%emt 0:04:02]} 17. exd5 {[%emt 0:00:05]} Nd4 {[%emt 0:04:46]} 18. Nxd4 {[%emt 0:04:38]} exd4 {[%emt 0:00:37]} 19. Qb3 {[%emt 0:01:11]} Qc5 {[%emt 0:07:18]} 20. Bf3 {[%emt 0:00:16]} a5 {[%emt 0:03:48]} 21. Rhe1 {[%emt 0:01:20]} Kf8 {[%emt 0:01:05]} 22. Qd3 {[%emt 0:01:08]} Nxd5 {[%emt 0:04:17]} 23. Bxd5 {[%emt 0:00:30]} Bxg5 {[%emt 0:00:06]} 24. Qf5 {[%emt 0:00:16]} Bf6 {[%emt 0:00:11]} 25. Qd7 {[%emt 0:00:08]} Qxc2+ {[%emt 0:04:45]} 26. Ka2 {[%emt 0:00:13]} Qxb2+ {[%emt 0:00:30]} 27. Kxb2 {[%emt 0:00:04]} d3+ {[%emt 0:00:04]} 28. Kb1 {[%emt 0:00:07]} 1-0

[Event "2nd Serbian League-Vojvodina 2023"]
[Site "Novi Sad"]
[Date "2023.11.08"]
[Round "9.20"]
[White "Szalai, Kornel"]
[Black "Lalic, Bogdan"]
[Result "1-0"]
[ECO "A35"]
[WhiteElo "2383"]
[BlackElo "2345"]
[Annotator "RC"]
[PlyCount "105"]
[EventDate "2023.10.22"]
[EventType "team-tourn"]
[EventCountry "SRB"]
[SourceTitle "playchess.com"]
[Source "ChessBase"]
[SourceQuality "1"]
[TimeControl "40/5400+30:1800+30"]

1. Nf3 {[%emt 1:31:00]} c5 {[%emt 1:31:00]} 2. c4 {[%emt 0:00:30]} Nc6 {[%emt 0:00:30]} 3. Nc3 {[%emt 0:00:30]} g6 {[%emt 0:00:30]} 4. h4 {[%emt 0:00:30]} Nf6 {[%emt 0:00:30]} 5. b3 {[%emt 0:00:30]} Bg7 {[%emt 0:00:30]} 6. Bb2 {[%emt 0:00:30]} d6 {[%emt 0:00:30]} 7. g3 {[%emt 0:00:30]} O-O {[%emt 0:00:30]} 8. Bg2 {[%emt 0:00:30]} e5 {[%emt 0:00:30]} 9. d3 {[%emt 0:00:30]} a6 {[%emt 0:00:30]} 10. Ng5 {[%emt 0:00:30]} h6 {[%emt 0:00:30]} 11. Nge4 {[%emt 0:00:30]} Ng4 {[%emt 0:00:30]} 12. e3 {[%emt 0:00:30]} f5 {[%emt 0:00:30]} 13. Bf3 {[%emt 0:00:30]} Nb4 {[%emt 0:00:30]} 14. O-O {[%emt 0:00:30]} fxe4 {[%emt 0:00:30]} 15. Bxg4 {[%emt 0:00:30]} Nxd3 {[%emt 0:00:30]} 16. Bxc8 {[%emt 0:00:30]} Rxc8 {[%emt 0:00:30]} 17. Nxe4 {[%emt 0:00:30]} Nxb2 {[%emt 0:00:30]} 18. Qd5+ {[%emt 0:00:30]} Kh7 {[%emt 0:00:30]} 19. Rfb1 {[%emt 0:00:30]} Rc6 {[%emt 0:00:30]} 20. Rxb2 {[%emt 0:00:30]} Qe7 {[%emt 0:00:30]} 21. Rd2 {[%emt 0:00:30]} Rd8 {[%emt 0:00:30]} 22. Kg2 {[%emt 0:00:30]} Bf8 {[%emt 0:00:30]} 23. a4 {[%emt 0:00:30]} Kg7 {[%emt 0:00:30]} 24. h5 {[%emt 0:00:30]} gxh5 {[%emt 0:00:30]} 25. Rh1 {[%emt 0:00:30]} Qf7 {[%emt 0:00:30]} 26. Nc3 {[%emt 0:00:30]} Qg6 {[%emt 0:00:30]} 27. Qf3 {[%emt 0:00:30]} Qg4 {[%emt 0:00:30]} 28. Rxh5 {[%emt 0:00:30]} Qxf3+ {[%emt 0:00:30]} 29. Kxf3 {[%emt 0:00:30]} Kf7 {[%emt 0:00:30]} 30. g4 {[%emt 0:00:30]} Ke6 {[%emt 0:00:30]} 31. Ke4 Rd7 {[%emt 0:00:30]} 32. f3 {[%emt 0:01:00]} Rf7 {[%emt 0:00:30]} 33. Rdh2 {[%emt 0:00:30]} Rb6 {[%emt 0:00:30]} 34. Rb2 {[%emt 0:00:30]} Rc6 {[%emt 0:00:30]} 35. Rf5 {[%emt 0:00:30]} Rxf5 {[%emt 0:00:30]} 36. gxf5+ {[%emt 0:00:30]} Kf7 {[%emt 0:00:30]} 37. Nd5 {[%emt 0:00:30]} a5 {[%emt 0:00:30]} 38. Rg2 {[%emt 0:00:30]} Rc8 {[%emt 0:00:30]} 39. Rg6 {[%emt 0:00:30]} Rd8 {[%emt 0:00:30]} 40. Nc7 {[%emt 0:00:30]} Rc8 {[%emt 0:00:30]} 41. Nb5 {[%emt 0:30:30]} Rc6 {[%emt 0:30:30]} 42. Kd5 {[%emt 0:00:30]} h5 {[%emt 0:00:30]} 43. Rg5 {[%emt 0:00:30]} h4 {[%emt 0:00:30]} 44. Rh5 {[%emt 0:00:30]} Be7 {[%emt 0:00:30]} 45. Rh7+ {[%emt 0:00:30]} Kf8 {[%emt 0:00:30]} 46. Nc3 {[%emt 0:00:30]} Rb6 {[%emt 0:00:30]} 47. Ne4 Ke8 {[%emt 0:00:30]} 48. f6 Bf8 {[%emt 0:00:30]} 49. Ng5 {[%emt 0:01:30]} Rxb3 {[%emt 0:00:30]} 50. Ke4 {[%emt 0:00:30]} d5+ {[%emt 0:00:30]} 51. cxd5 c4 52. Ne6 {[%emt 0:01:00]} c3 {[%emt 0:01:00]} 53. Rc7 {[%emt 0:00:30]} 1-0

[Event "2nd Serbian League-Vojvodina 2023"]
[Site "Novi Sad"]
[Date "2023.11.08"]
[Round "9.21"]
[White "Grujic, Zoran"]
[Black "Nadj Hedjesi, Balind"]
[Result "1/2-1/2"]
[ECO "A04"]
[WhiteElo "2315"]
[BlackElo "2227"]
[Annotator "RC"]
[PlyCount "47"]
[EventDate "2023.10.22"]
[EventType "team-tourn"]
[EventCountry "SRB"]
[SourceTitle "playchess.com"]
[Source "ChessBase"]
[SourceQuality "1"]
[TimeControl "40/5400+30:1800+30"]

1. Nf3 {[%emt 0:00:03]} g5 {[%emt 0:01:44]} 2. Nxg5 {[%emt 0:01:23]} e5 {[%emt 0:00:10]} 3. d3 {[%emt 0:00:11]} d5 {[%emt 0:04:21]} 4. e4 {[%emt 0:07:16]} Nf6 {[%emt 0:08:40]} 5. exd5 {[%emt 0:02:27]} h6 {[%emt 0:05:22]} 6. Ne4 {[%emt 0:02:31]} Nxd5 {[%emt 1:13:13]} 7. g3 {[%emt 0:03:34]} Nc6 {[%emt 0:00:00]} 8. Bg2 {[%emt 0:03:34]} Be6 {[%emt 0:00:00]} 9. O-O {[%emt 1:14:01]} Be7 {[%emt 0:00:00]} 10. a3 {[%emt 0:00:00]} Qd7 {[%emt 0:00:00]} 11. b4 {[%emt 0:01:00]} f5 {[%emt 0:02:30]} 12. Nec3 {[%emt 0:00:00]} Nf6 {[%emt 0:00:00]} 13. b5 {[%emt 0:00:00]} Nd4 {[%emt 0:00:00]} 14. Bxb7 {[%emt 0:00:00]} Rb8 {[%emt 0:00:00]} 15. Bg2 {[%emt 0:00:00]} h5 {[%emt 0:00:00]} 16. Bg5 {[%emt 0:02:30]} h4 {[%emt 0:00:00]} 17. Bxh4 {[%emt 0:00:00]} Rxh4 {[%emt 0:00:00]} 18. gxh4 {[%emt 0:01:00]} Kf7 19. Nd2 {[%emt 0:00:00]} Rg8 20. Nc4 {[%emt 0:01:00]} Bd6 {[%emt 0:04:30]} 21. Kh1 {[%emt 0:00:30]} Rg4 {[%emt 0:00:30]} 22. f3 {[%emt 0:00:30]} Rf4 {[%emt 0:00:00]} 23. Nxd6+ Qxd6 {[%emt 0:01:00]} 24. Ne2 {[%emt 0:01:00]} 1/2-1/2

[Event "2nd Serbian League-Vojvodina 2023"]
[Site "Novi Sad"]
[Date "2023.11.08"]
[Round "9.22"]
[White "Farkas, Tibor"]
[Black "Dragojlovic, Andjelko"]
[Result "1/2-1/2"]
[ECO "B39"]
[WhiteElo "2210"]
[BlackElo "2108"]
[Annotator "RC"]
[PlyCount "66"]
[EventDate "2023.10.22"]
[EventType "team-tourn"]
[EventCountry "SRB"]
[SourceTitle "playchess.com"]
[Source "ChessBase"]
[SourceQuality "1"]
[TimeControl "40/5400+30:1800+30"]

1. e4 {[%emt 1:31:00]} c5 {[%emt 1:31:00]} 2. Nf3 {[%emt 0:00:30]} g6 {[%emt 0:00:30]} 3. d4 {[%emt 0:00:30]} cxd4 {[%emt 0:00:30]} 4. Nxd4 {[%emt 0:00:30]} Bg7 {[%emt 0:00:30]} 5. c4 {[%emt 0:00:30]} Nc6 {[%emt 0:00:30]} 6. Be3 {[%emt 0:00:30]} Nf6 {[%emt 0:00:30]} 7. Nc3 {[%emt 0:00:30]} Ng4 {[%emt 0:00:30]} 8. Qxg4 {[%emt 0:00:30]} Nxd4 {[%emt 0:00:30]} 9. Qd1 {[%emt 0:00:30]} e5 {[%emt 0:00:30]} 10. Qd2 {[%emt 0:00:30]} O-O {[%emt 0:00:30]} 11. Bd3 {[%emt 0:00:30]} d6 {[%emt 0:00:30]} 12. O-O {[%emt 0:00:30]} a6 {[%emt 0:00:30]} 13. Rac1 {[%emt 0:00:30]} Be6 {[%emt 0:00:30]} 14. b3 {[%emt 0:00:30]} f5 {[%emt 0:00:30]} 15. f4 Qe7 {[%emt 0:00:30]} 16. Rce1 Rae8 {[%emt 0:00:30]} 17. h3 Kh8 18. Kh2 Qc7 {[%emt 0:01:00]} 19. Kh1 Re7 {[%emt 0:00:30]} 20. exf5 gxf5 21. Bxd4 exd4 22. Nd5 Bxd5 {[%emt 0:01:30]} 23. cxd5 Rxe1 {[%emt 0:00:30]} 24. Rxe1 Qc5 25. Re7 Qxd5 26. Qe1 b5 27. Re8 Qf7 {[%emt 0:02:00]} 28. Rxf8+ Bxf8 29. Bc2 Qf6 30. Qd1 Bh6 31. g3 Bg7 32. Qe2 Qf7 {[%emt 0:02:30]} 33. Kh2 Kg8 1/2-1/2

[Event "2nd Serbian League-Vojvodina 2023"]
[Site "Novi Sad"]
[Date "2023.11.08"]
[Round "9.23"]
[White "Stikovic, Dobrica"]
[Black "Juhasz, Bence R"]
[Result "0-1"]
[ECO "E62"]
[WhiteElo "2162"]
[BlackElo "2210"]
[Annotator "RC"]
[PlyCount "134"]
[EventDate "2023.10.22"]
[EventType "team-tourn"]
[EventCountry "SRB"]
[SourceTitle "playchess.com"]
[Source "ChessBase"]
[SourceQuality "1"]
[TimeControl "40/5400+30:1800+30"]

1. Nf3 {[%emt 1:31:00]} Nf6 {[%emt 1:31:00]} 2. c4 {[%emt 0:00:30]} g6 {[%emt 0:00:30]} 3. Nc3 {[%emt 0:00:30]} Bg7 {[%emt 0:00:30]} 4. g3 {[%emt 0:00:30]} O-O {[%emt 0:00:30]} 5. Bg2 {[%emt 0:00:30]} d6 {[%emt 0:00:30]} 6. O-O {[%emt 0:00:30]} Nc6 {[%emt 0:00:30]} 7. d4 {[%emt 0:00:30]} e5 {[%emt 0:00:30]} 8. h3 {[%emt 0:00:30]} exd4 {[%emt 0:00:30]} 9. Nxd4 {[%emt 0:00:30]} Nxd4 {[%emt 0:00:30]} 10. Qxd4 {[%emt 0:00:30]} Nd7 {[%emt 0:00:30]} 11. Qd2 {[%emt 0:00:30]} a5 {[%emt 0:00:30]} 12. Qc2 {[%emt 0:00:30]} Nc5 {[%emt 0:00:30]} 13. Bd2 {[%emt 0:00:30]} Re8 {[%emt 0:00:30]} 14. e4 {[%emt 0:00:30]} c6 {[%emt 0:00:30]} 15. Rad1 {[%emt 0:00:30]} Qb6 {[%emt 0:00:30]} 16. Be3 {[%emt 0:00:30]} Qb4 {[%emt 0:00:30]} 17. Rxd6 {[%emt 0:00:30]} Na4 {[%emt 0:00:30]} 18. Nxa4 {[%emt 0:00:30]} Qxd6 {[%emt 0:00:30]} 19. Nb6 {[%emt 0:00:30]} Ra6 {[%emt 0:00:30]} 20. c5 {[%emt 0:00:30]} Qf6 {[%emt 0:00:30]} 21. b3 {[%emt 0:00:30]} Be6 {[%emt 0:00:30]} 22. Rd1 {[%emt 0:00:30]} Qb2 {[%emt 0:00:30]} 23. Qxb2 {[%emt 0:00:30]} Bxb2 {[%emt 0:00:30]} 24. Bf1 {[%emt 0:00:30]} Ra7 {[%emt 0:00:30]} 25. Kg2 {[%emt 0:00:30]} Bf6 {[%emt 0:00:30]} 26. f4 {[%emt 0:00:30]} Bd8 {[%emt 0:00:30]} 27. Nc4 {[%emt 0:00:30]} Bc7 {[%emt 0:00:30]} 28. Nd6 {[%emt 0:00:30]} Rd8 {[%emt 0:00:30]} 29. e5 {[%emt 0:00:30]} a4 {[%emt 0:00:30]} 30. Bc4 {[%emt 0:00:30]} axb3 {[%emt 0:00:30]} 31. Bxe6 {[%emt 0:00:30]} fxe6 {[%emt 0:00:30]} 32. axb3 {[%emt 0:00:30]} Ra3 {[%emt 0:00:30]} 33. Rd3 {[%emt 0:00:30]} Kf8 {[%emt 0:00:30]} 34. Kf3 {[%emt 0:00:30]} Rd7 {[%emt 0:00:30]} 35. g4 {[%emt 0:00:30]} Bxd6 {[%emt 0:00:30]} 36. exd6 {[%emt 0:00:30]} Ke8 {[%emt 0:00:30]} 37. Ke4 {[%emt 0:00:30]} Rf7 {[%emt 0:00:30]} 38. Bd4 {[%emt 0:00:30]} Kd7 {[%emt 0:00:30]} 39. h4 {[%emt 0:00:30]} Ra2 {[%emt 0:00:30]} 40. Rh3 {[%emt 0:00:30]} Re2+ {[%emt 0:00:30]} 41. Be3 {[%emt 0:30:30]} Rg2 {[%emt 0:30:30]} 42. g5 Rb2 {[%emt 0:00:30]} 43. Bd4 Rb1 44. h5 gxh5 45. Rxh5 {[%emt 0:02:00]} Rxb3 {[%emt 0:01:30]} 46. Rh2 {[%emt 0:00:30]} Rb4 {[%emt 0:00:30]} 47. Ke3 {[%emt 0:00:30]} Rb5 {[%emt 0:00:30]} 48. Ra2 {[%emt 0:00:30]} Rb3+ {[%emt 0:00:30]} 49. Ke4 {[%emt 0:00:30]} Rb4 {[%emt 0:00:30]} 50. Ke3 {[%emt 0:00:30]} Rb3+ {[%emt 0:00:30]} 51. Ke4 {[%emt 0:00:30]} Rb4 {[%emt 0:00:30]} 52. Ke3 {[%emt 0:00:30]} Rxf4 {[%emt 0:00:30]} 53. Kxf4 {[%emt 0:00:30]} Rxd4+ {[%emt 0:00:30]} 54. Kf3 {[%emt 0:00:30]} Rd5 {[%emt 0:00:30]} 55. Rh2 {[%emt 0:00:30]} Rxc5 {[%emt 0:00:30]} 56. Rxh7+ {[%emt 0:00:30]} Kxd6 {[%emt 0:00:30]} 57. Kg4 {[%emt 0:00:30]} b5 {[%emt 0:00:30]} 58. g6 {[%emt 0:00:30]} Rc1 {[%emt 0:00:30]} 59. Kg5 {[%emt 0:00:30]} b4 {[%emt 0:00:30]} 60. Rh4 {[%emt 0:00:30]} Rg1+ {[%emt 0:00:30]} 61. Kf6 {[%emt 0:00:30]} c5 {[%emt 0:00:30]} 62. g7 {[%emt 0:00:30]} b3 {[%emt 0:00:30]} 63. Re4 {[%emt 0:00:30]} Rxg7 {[%emt 0:00:30]} 64. Kxg7 {[%emt 0:00:30]} b2 {[%emt 0:00:30]} 65. Re1 {[%emt 0:00:30]} c4 {[%emt 0:00:30]} 66. Kf6 {[%emt 0:00:30]} c3 {[%emt 0:00:30]} 67. Rb1 {[%emt 0:00:30]} Kd5 {[%emt 0:00:30]} 0-1

[Event "2nd Serbian League-Vojvodina 2023"]
[Site "Novi Sad"]
[Date "2023.11.08"]
[Round "10.1"]
[White "Somborski, Nebojsa"]
[Black "Lalic, Bogdan"]
[Result "1/2-1/2"]
[ECO "C70"]
[WhiteElo "2266"]
[BlackElo "2345"]
[Annotator "RC"]
[PlyCount "26"]
[EventDate "2023.10.22"]
[EventType "team-tourn"]
[EventCountry "SRB"]
[SourceTitle "playchess.com"]
[Source "ChessBase"]
[SourceQuality "1"]
[TimeControl "40/5400+30:1800+30"]

1. e4 {[%emt 0:00:07]} e5 {[%emt 0:01:58]} 2. Nf3 {[%emt 0:00:29]} Nc6 {[%emt 0:00:09]} 3. Bb5 {[%emt 0:00:27]} a6 {[%emt 0:00:12]} 4. Ba4 {[%emt 0:00:21]} f5 {[%emt 0:00:16]} 5. d4 {[%emt 0:01:13]} exd4 {[%emt 0:00:12]} 6. e5 {[%emt 0:01:13]} b5 {[%emt 0:00:10]} 7. Bb3 {[%emt 0:00:35]} Bb7 {[%emt 0:00:20]} 8. c3 {[%emt 0:15:47]} Na5 {[%emt 0:00:25]} 9. Bc2 {[%emt 0:06:35]} dxc3 {[%emt 0:00:39]} 10. Nxc3 {[%emt 1:08:43]} Bc5 {[%emt 0:03:17]} 11. Bxf5 {[%emt 0:00:00]} Ne7 {[%emt 0:00:10]} 12. Be4 {[%emt 0:00:00]} d5 {[%emt 0:00:50]} 13. exd6 {[%emt 0:00:00]} Qxd6 {[%emt 0:00:10]} 1/2-1/2

[Event "2nd Serbian League-Vojvodina 2023"]
[Site "Novi Sad"]
[Date "2023.11.08"]
[Round "10.2"]
[White "Grujic, Zoran"]
[Black "Jakovljev, Zoran"]
[Result "1/2-1/2"]
[ECO "A27"]
[WhiteElo "2315"]
[BlackElo "2194"]
[Annotator "RC"]
[PlyCount "41"]
[EventDate "2023.10.22"]
[EventType "team-tourn"]
[EventCountry "SRB"]
[SourceTitle "playchess.com"]
[Source "ChessBase"]
[SourceQuality "1"]
[TimeControl "40/5400+30:1800+30"]

1. c4 {[%emt 0:00:30]} e5 {[%emt 0:00:13]} 2. Nc3 {[%emt 0:00:00]} Nc6 {[%emt 0:00:04]} 3. Nf3 {[%emt 0:00:00]} f5 {[%emt 0:00:12]} 4. d4 {[%emt 0:02:48]} e4 {[%emt 0:00:04]} 5. Ng5 {[%emt 0:00:13]} Qf6 {[%emt 0:01:22]} 6. Nd5 {[%emt 0:08:04]} Bb4+ {[%emt 0:04:02]} 7. Bd2 {[%emt 0:00:46]} Qxg5 {[%emt 0:08:28]} 8. Nxb4 {[%emt 0:04:08]} Qd8 {[%emt 0:00:21]} 9. Nc2 {[%emt 0:03:21]} Nf6 {[%emt 0:00:42]} 10. e3 {[%emt 0:01:12]} O-O {[%emt 0:00:48]} 11. d5 {[%emt 0:03:06]} Ne5 {[%emt 0:00:08]} 12. Bc3 {[%emt 0:00:07]} Qe7 {[%emt 0:02:26]} 13. Be2 {[%emt 0:01:32]} d6 {[%emt 0:00:19]} 14. O-O {[%emt 0:00:42]} Bd7 {[%emt 0:00:19]} 15. Qd4 {[%emt 0:00:36]} a6 {[%emt 0:00:33]} 16. b4 {[%emt 0:02:33]} Kh8 {[%emt 0:00:36]} 17. a4 {[%emt 0:07:11]} Be8 {[%emt 0:01:37]} 18. f4 {[%emt 0:01:06]} exf3 {[%emt 1:17:16]} 19. gxf3 {[%emt 0:00:08]} Bh5 {[%emt 0:00:00]} 20. Rf2 {[%emt 0:01:22]} Rae8 {[%emt 0:00:00]} 21. a5 {[%emt 0:03:22]} 1/2-1/2